fUSD/lending_fUSD_20240427
["ID","MTS","AMOUNT","RATE_DAILY","PERIOD"]
[323735884,1714223825712,3308.42996611,9.9e-05,2]
[323735885,1714223832194,-4000.0,9.9e-05,2]
[323735886,1714223832732,-4000.0,9.9e-05,2]
[323735887,1714223836976,-3750.84546359,9.9e-05,2]
[323735888,1714223837000,-195.71648188,9.9e-05,2]
[323735889,1714223859034,53.43805453,9.966e-05,2]
[323735890,1714223859058,174.47194547,9.966e-05,2]
[323735891,1714223873341,632.01,9.938e-05,2]
[323735892,1714223893919,599.87380758,9.999e-05,2]
[323735893,1714223928289,222.56,8.219e-05,2]
[323735894,1714223939441,668.95,9.91e-05,2]
[323735895,1714223954437,170.57,7.932e-05,2]
[323735896,1714223971358,153.67,9.99e-05,2]
[323735897,1714224087599,166.12,9.687e-05,2]
[323735904,1714224199005,250.0,9.759e-05,2]
[323735905,1714224212597,961.77424695,9.94e-05,2]
[323735906,1714224234865,423.69,0.0001063,10]
[323736672,1714224555115,211.43,8.219e-05,2]
[323736756,1714224631847,-160.8,9.452e-05,2]
[323736757,1714224631857,-153.67,9.562e-05,2]
[323736758,1714224631867,-2810.0,9.607e-05,2]
[323736759,1714224631877,-421.0,9.609e-05,2]
[323736760,1714224631892,-150.0,9.666e-05,2]
[323736761,1714224631903,-15796.73,9.667e-05,2]
[323736762,1714224631913,-200.0,9.712e-05,2]
[323736763,1714224631924,-153.67,9.811e-05,2]
[323736764,1714224631935,-150.0,9.938e-05,2]
[323736765,1714224631946,-2059.94945305,9.94e-05,2]
[323736766,1714224631956,-256.98019887,0.0001,2]
[323736767,1714224631966,-161.11918863,0.0001,2]
[323736768,1714224631978,-3369.12,0.0001,2]
[323736769,1714224631987,-499.99,0.0001,2]
[323736770,1714224631996,-199.47,0.00010017,2]
[323736771,1714224632007,-14774.57803664,0.00010038,2]
[323736772,1714224632016,-199.47,0.00010042,2]
[323736773,1714224632026,-153.67,0.0001006,2]
[323736774,1714224632035,-199.47,0.00010067,2]
[323736775,1714224632045,-824.98,0.000101,2]
[323736776,1714224632055,-215.5,0.00010356,2]
[323736777,1714224632068,-600.0,0.000104,3]
[323736778,1714224632078,-211.43,0.00010446,2]
[323736779,1714224632087,-13996.69632261,0.00010499,2]
[323736780,1714224632098,-1300.0,0.000105,3]
[323736781,1714224632107,-150.0,0.00010548,2]
[323736782,1714224632117,-301.48,0.00010548,2]
[323736783,1714224632126,-154.51,0.00010548,2]
[323736784,1714224632135,-418.94,0.00010548,2]
[323736786,1714224632145,-150.0,0.00010548,2]
[323736788,1714224632154,-300.44,0.00010548,2]
[323736790,1714224632163,-1044.26,0.00010548,2]
[323736792,1714224632173,-162.9,0.00010548,2]
[323736794,1714224632183,-150.0,0.00010548,2]
[323736796,1714224632192,-150.0,0.00010548,2]
[323736798,1714224632201,-162.9,0.00010548,2]
[323736800,1714224632210,-150.0,0.00010548,2]
[323736802,1714224632220,-162.9,0.00010548,2]
[323736804,1714224632228,-150.0,0.00010548,2]
[323736806,1714224632238,-150.0,0.00010548,2]
[323736808,1714224632247,-162.9,0.00010548,2]
[323736810,1714224632256,-150.0,0.00010548,2]
[323736812,1714224632265,-162.65,0.00010548,2]
[323736814,1714224632274,-150.0,0.00010548,2]
[323736815,1714224632284,-2000.0,0.000106,3]
[323736816,1714224632293,-2445.17272256,0.00010617,2]
[323736817,1714224632302,-155.0,0.0001063,2]
[323736818,1714224632314,-151.58,0.0001063,10]
[323736819,1714224632323,-210.0,0.00010633,2]
[323736820,1714224632332,-2700.0,0.000107,3]
[323736821,1714224632341,-5632.1898996,0.00010748,2]
[323736822,1714224632350,-522.13,0.00010778,2]
[323736823,1714224632359,-787.47,0.00010778,2]
[323736824,1714224632368,-3400.0,0.000108,3]
[323736825,1714224632377,-155.0,0.000109,2]
[323736826,1714224632386,-44772.28417803,0.000109,2]
[323736827,1714224632984,-373.1648316,0.000109,2]
[323736862,1714224638026,-55191.5641549,0.000109,2]
[323736870,1714224638404,-263.8,0.000109,2]
[323736901,1714224639938,-391.51009304,0.000109,2]
[323736902,1714224639950,-1453.91047075,0.000109,2]
[323736926,1714224643034,-147553.76627168,0.000109,2]
[323736928,1714224643043,-600.0,0.000109,3]
[323736930,1714224643052,-1500.0,0.00010913,2]
[323736931,1714224643062,-157.46268323,0.00010952,2]
[323736932,1714224643074,-150.0,0.00010956,2]
[323736933,1714224643083,-500.0,0.00010958,2]
[323736934,1714224643094,-712.87,0.00010958,2]
[323736935,1714224643103,-846.84,0.00010958,2]
[323736936,1714224643112,-500.0,0.00010958,2]
[323736937,1714224643122,-594.44457839,0.00010958,2]
[323736938,1714224643131,-835.79,0.00010958,2]
[323736939,1714224643139,-1334.86,0.00010958,2]
[323736940,1714224643149,-500.0,0.00010958,2]
[323736941,1714224643158,-500.0,0.00010958,2]
[323736942,1714224643167,-431.93,0.00010958,2]
[323736943,1714224643176,-500.0,0.00010958,2]
[323736944,1714224643185,-500.0,0.00010958,2]
[323736945,1714224643195,-881.12,0.00010958,2]
[323736946,1714224643204,-500.0,0.00010958,2]
[323736947,1714224643214,-500.0,0.00010958,2]
[323736948,1714224643223,-500.0,0.00010958,2]
[323736949,1714224643232,-500.0,0.00010958,2]
[323736950,1714224643242,-614.86,0.00010958,2]
[323736951,1714224643251,-500.0,0.00010958,2]
[323736952,1714224643260,-937.04,0.00010958,2]
[323736953,1714224643270,-500.0,0.00010958,2]
[323736954,1714224643279,-500.0,0.00010958,2]
[323736955,1714224643288,-840.28,0.00010958,2]
[323736956,1714224643298,-500.0,0.00010958,2]
[323736957,1714224643308,-500.0,0.00010958,2]
[323736958,1714224643318,-500.0,0.00010958,2]
[323736959,1714224643327,-1294.1,0.00010958,2]
[323736960,1714224643337,-1775.22,0.00010958,2]
[323736961,1714224643348,-295.62478361,0.00010958,2]
[323736962,1714224643357,-1094.3,0.00010958,2]
[323736963,1714224643366,-500.0,0.00010958,2]
[323736964,1714224643375,-500.0,0.00010958,2]
[323736965,1714224643385,-1077.36,0.00010958,2]
[323736966,1714224643393,-500.0,0.00010958,2]
[323736967,1714224643402,-2660.52,0.00010958,2]
[323736968,1714224643411,-500.0,0.00010958,2]
[323736969,1714224643421,-500.0,0.00010958,2]
[323736970,1714224643430,-500.0,0.00010958,2]
[323736971,1714224643439,-3156.52,0.00010958,2]
[323736972,1714224643449,-629.72,0.00010958,2]
[323736973,1714224643458,-595.69,0.00010958,2]
[323736974,1714224643468,-500.0,0.00010958,2]
[323736975,1714224643477,-792.42,0.00010958,2]
[323736976,1714224643486,-717.28,0.00010958,2]
[323736977,1714224643495,-1101.67,0.00010958,2]
[323736978,1714224643504,-500.0,0.00010958,2]
[323736979,1714224643513,-500.0,0.00010958,2]
[323736980,1714224643523,-2377.68,0.00010958,2]
[323736981,1714224643532,-640.8,0.00010958,2]
[323736982,1714224643542,-2195.14,0.00010958,2]
[323736983,1714224643551,-989.76,0.00010958,2]
[323736984,1714224643560,-514.15,0.00010958,2]
[323736985,1714224643571,-500.0,0.00010958,2]
[323736986,1714224643580,-500.0,0.00010958,2]
[323736987,1714224643589,-500.0,0.00010958,2]
[323736988,1714224643598,-500.0,0.00010958,2]
[323736989,1714224643608,-5078.72,0.00010958,2]
[323736990,1714224643617,-500.0,0.00010958,2]
[323736991,1714224643626,-500.0,0.00010958,2]
[323736992,1714224643635,-500.0,0.00010958,2]
[323736993,1714224643644,-11219.85,0.00010958,2]
[323736994,1714224643653,-8402.88,0.00010958,2]
[323736995,1714224643662,-500.0,0.00010958,2]
[323736996,1714224643671,-500.0,0.00010958,2]
[323736997,1714224643681,-500.0,0.00010958,2]
[323736998,1714224643690,-500.0,0.00010958,2]
[323736999,1714224643699,-500.0,0.00010958,2]
[323737000,1714224643708,-1040.19,0.00010958,2]
[323737001,1714224643718,-500.0,0.00010958,2]
[323737002,1714224643727,-500.0,0.00010958,2]
[323737003,1714224643737,-555.02040297,0.00010958,2]
[323737004,1714224643746,-500.0,0.00010958,2]
[323737005,1714224643756,-150.0,0.00010959,2]
[323737006,1714224643765,-150.0,0.00010964,2]
[323737007,1714224643774,-206.0,0.0001098,2]
[323737008,1714224643783,-300.0,0.00010985,2]
[323737009,1714224643792,-150.0,0.00010985,2]
[323737010,1714224643802,-2750.0,0.00011,3]
[323737011,1714224643811,-150.0,0.00011002,2]
[323737012,1714224643822,-150.0,0.00011011,2]
[323737013,1714224643831,-4442.6602,0.00011032,2]
[323737014,1714224643840,-150.0,0.00011036,2]
[323737015,1714224643849,-220.51955605,0.00011045,2]
[323737016,1714224643858,-415.83,0.00011066,2]
[323737017,1714224643867,-150.0,0.00011066,2]
[323737018,1714224643876,-300.0,0.00011066,2]
[323737019,1714224643886,-695.14,0.00011066,2]
[323737020,1714224643897,-300.0,0.00011066,2]
[323737021,1714224643906,-322.88,0.00011066,2]
[323737022,1714224643916,-45858.76249718,0.0001107,2]
[323737023,1714224643967,-304.1883659,0.0001107,2]
[323737024,1714224643984,-6328.0,0.0001107,2]
[323737029,1714224645864,-500.0,0.00010958,2]
[323737030,1714224645873,-159.54,0.00010958,2]
[323737031,1714224645886,-340.46,0.00010958,2]
[323737032,1714224645896,-807.78873692,0.0001107,2]
[323737033,1714224645906,-194.12061591,0.0001107,2]
[323737034,1714224645921,-789.5512625,0.0001107,2]
[323737035,1714224645935,-1289.06891317,0.0001107,2]
[323737036,1714224645984,-1143.01272068,0.0001107,2]
[323737037,1714224645996,-1225.43427933,0.0001107,2]
[323737038,1714224646045,-4347.46730841,0.0001107,2]
[323737039,1714224646055,-1279.3347,0.00011072,2]
[323737040,1714224646065,-667.77,0.00011076,2]
[323737041,1714224646077,-500.0,0.00011077,2]
[323737042,1714224646087,-178.6392603,0.00011078,2]
[323737043,1714224646097,-525.51022698,0.00011078,2]
[323737044,1714224646106,-5075.40943052,0.00011078,2]
[323737045,1714224646116,-200.88129129,0.00011079,2]
[323737046,1714224646126,-1610.69002412,0.00011079,2]
[323737047,1714224646135,-926.57498725,0.0001109,2]
[323737048,1714224646148,-73.42501275,0.0001109,2]
[323737049,1714224646157,-500.0,0.0001109,2]
[323737050,1714224646166,-693.35918511,0.00011099,2]
[323737051,1714224646178,-806.64081489,0.00011099,2]
[323737052,1714224646188,-205.23039409,0.0001111,2]
[323737053,1714224646198,-1612.5515966,0.00011122,2]
[323737054,1714224646207,-206.0,0.0001113,2]
[323737055,1714224646217,-341.04812159,0.00011132,2]
[323737056,1714224646230,-3161.386982,0.00011132,2]
[323737057,1714224646241,-2884.28933481,0.00011132,2]
[323737075,1714225069520,204.66,8.219e-05,2]
[323737090,1714225160308,-652.4,0.00024925,30]
[323737091,1714225160331,-188.0,0.00024925,30]
[323737092,1714225160353,-188.0,0.00024925,30]
[323737093,1714225160376,-1000.0,0.00024925,30]
[323737094,1714225160399,-1000.0,0.00024925,30]
[323737095,1714225160422,-1000.0,0.00024925,30]
[323737096,1714225160445,-1000.0,0.00024925,30]
[323737097,1714225160467,-1000.0,0.00024925,30]
[323737098,1714225160490,-1000.0,0.00024925,30]
[323737099,1714225160512,-1000.0,0.00024925,30]
[323737100,1714225160534,-1148.3097326,0.00024925,30]
[323737101,1714225160556,-1055.84630352,0.00024925,30]
[323737102,1714225160578,-477.159481,0.00024925,30]
[323737103,1714225160604,-356.61715887,0.00024925,30]
[323737104,1714225160626,-824.25016152,0.00024925,30]
[323737105,1714225160648,-375.32120937,0.00024925,120]
[323737106,1714225160670,-1814.66207231,0.00024925,30]
[323737107,1714225160691,-690.22106243,0.00024925,30]
[323737108,1714225160714,-1363.31440132,0.00024925,30]
[323737109,1714225160736,-167.2586223,0.00024925,120]
[323737110,1714225160759,-524.17239896,0.00024925,120]
[323737111,1714225160780,-264.48958625,0.00024925,30]
[323737112,1714225160802,-363.92597612,0.00024925,30]
[323737113,1714225160825,-936.70426786,0.00024925,120]
[323737114,1714225160850,-807.35427856,0.00024925,30]
[323737115,1714225160873,-1335.85693844,0.00024925,120]
[323737116,1714225160896,-815.07650395,0.00024925,30]
[323737117,1714225160918,-651.73921533,0.00024925,30]
[323737118,1714225160941,-1202.5594769,0.00024925,120]
[323737119,1714225160963,-876.63771339,0.00024925,30]
[323737120,1714225160986,-699.69734339,0.00024925,60]
[323737121,1714225161008,-195.02668576,0.00024925,30]
[323737122,1714225161031,-907.00400121,0.00024925,30]
[323737123,1714225161057,-1050.81496777,0.00024925,120]
[323737124,1714225161080,-329.01472606,0.00024925,30]
[323737125,1714225161103,-698.12179902,0.00024925,30]
[323737126,1714225161126,-1000.0,0.00024925,30]
[323737127,1714225161151,-1000.0,0.00024925,30]
[323737128,1714225161174,-220.30106824,0.00024925,120]
[323737129,1714225161197,-1000.0,0.00024925,60]
[323737130,1714225161220,-1000.0,0.00024925,60]
[323737131,1714225161243,-1000.0,0.00024925,120]
[323737132,1714225161265,-414.2306419,0.00024925,30]
[323737133,1714225161287,-158.30698757,0.00024925,120]
[323737134,1714225161309,-1224.43181464,0.00024925,30]
[323737135,1714225161330,-393.36002602,0.00024925,120]
[323737136,1714225161352,-363.42968913,0.00024925,30]
[323737137,1714225161374,-549.11252152,0.00024925,120]
[323737138,1714225161397,-1165.41040878,0.00024925,120]
[323737139,1714225161419,-1000.0,0.00024925,30]
[323737140,1714225161443,-1059.05532275,0.00024925,30]
[323737141,1714225161469,-255.21895931,0.00024925,30]
[323737142,1714225161492,-1000.0,0.00024925,60]
[323737143,1714225161516,-834.29234735,0.00024925,30]
[323737144,1714225161538,-1000.0,0.00024925,120]
[323737145,1714225161562,-1000.0,0.00024925,60]
[323737146,1714225161586,-933.52988029,0.00024925,120]
[323737147,1714225161608,-190.6984017,0.00024925,30]
[323737148,1714225161633,-1500.51643827,0.00024925,120]
[323737149,1714225161656,-279.5140961,0.00024925,120]
[323737150,1714225161680,-1183.4461781,0.00024925,30]
[323737151,1714225161703,-1304.15113759,0.00024925,120]
[323737152,1714225161729,-1645.76266183,0.00024925,120]
[323737153,1714225161753,-233.50257765,0.00024925,120]
[323737154,1714225161777,-249.77698013,0.00024925,30]
[323737155,1714225161802,-1335.76867159,0.00024925,30]
[323737156,1714225161825,-693.36617694,0.00024925,30]
[323737157,1714225161849,-865.90514629,0.00024925,120]
[323737158,1714225161873,-1023.37645169,0.00024925,120]
[323737159,1714225162137,-270.34033231,0.00024925,120]
[323737160,1714225162162,-474.20216672,0.00024925,120]
[323737161,1714225162187,-672.31831507,0.00024925,30]
[323737162,1714225162212,-152.9232565,0.00024925,30]
[323737163,1714225162236,-1373.46150583,0.00024925,30]
[323737164,1714225162263,-1079.64325266,0.00024925,30]
[323737165,1714225162287,-1051.7291637,0.00024925,30]
[323737166,1714225162312,-1000.0,0.00024925,60]
[323737167,1714225162336,-1177.65534891,0.00024925,120]
[323737168,1714225162361,-972.10622146,0.00024925,120]
[323737169,1714225162384,-1000.0,0.00024925,30]
[323737170,1714225162408,-1000.0,0.00024925,30]
[323737171,1714225162435,-1000.0,0.00024925,30]
[323737172,1714225162460,-1000.0,0.00024925,120]
[323737173,1714225162485,-1000.0,0.00024925,30]
[323737174,1714225162510,-1000.0,0.00024925,30]
[323737175,1714225162534,-1000.0,0.00024925,120]
[323737176,1714225162559,-1000.0,0.00024925,30]
[323737177,1714225162585,-1000.0,0.00024925,60]
[323737178,1714225162609,-1000.0,0.00024925,120]
[323737179,1714225162633,-1000.0,0.00024925,30]
[323737180,1714225162658,-1000.0,0.00024925,30]
[323737181,1714225162682,-1000.0,0.00024925,30]
[323737182,1714225162707,-1000.0,0.00024925,30]
[323737183,1714225162730,-1000.0,0.00024925,30]
[323737184,1714225162757,-1000.0,0.00024925,30]
[323737185,1714225162780,-1000.0,0.00024925,30]
[323737186,1714225162802,-1000.0,0.00024925,30]
[323737187,1714225162826,-1000.0,0.00024925,30]
[323737188,1714225162849,-1000.0,0.00024925,30]
[323737189,1714225162873,-1000.0,0.00024925,30]
[323737190,1714225162899,-1000.0,0.00024925,30]
[323737191,1714225162925,-1000.0,0.00024925,30]
[323737192,1714225162950,-1000.0,0.00024925,60]
[323737193,1714225162973,-1000.0,0.00024925,30]
[323737194,1714225162998,-1000.0,0.00024925,30]
[323737195,1714225163023,-1000.0,0.00024925,30]
[323737196,1714225163049,-1000.0,0.00024925,30]
[323737197,1714225163079,-1000.0,0.00024925,30]
[323737198,1714225163103,-1000.0,0.00024925,30]
[323737199,1714225163129,-1000.0,0.00024925,30]
[323737200,1714225163154,-1000.0,0.00024925,30]
[323737201,1714225163177,-1000.0,0.00024925,30]
[323737202,1714225163199,-1000.0,0.00024925,30]
[323737203,1714225163221,-1000.0,0.00024925,30]
[323737204,1714225163244,-1000.0,0.00024925,30]
[323737205,1714225163267,-1000.0,0.00024925,30]
[323737206,1714225163291,-1000.0,0.00024925,30]
[323737207,1714225163315,-1000.0,0.00024925,30]
[323737208,1714225163339,-1000.0,0.00024925,30]
[323737209,1714225163365,-1000.0,0.00024925,30]
[323737210,1714225163389,-1000.0,0.00024925,30]
[323737211,1714225163411,-1000.0,0.00024925,30]
[323737212,1714225163434,-1000.0,0.00024925,30]
[323737213,1714225163458,-1000.0,0.00024925,30]
[323737214,1714225163484,-1000.0,0.00024925,30]
[323737215,1714225163509,-350.78151641,0.00024925,30]
[323737216,1714225163531,-1000.0,0.00024925,60]
[323737217,1714225163556,-1000.0,0.00024925,60]
[323737218,1714225163581,-1000.0,0.00024925,30]
[323737219,1714225163606,-1000.0,0.00024925,120]
[323737220,1714225163631,-1000.0,0.00024925,30]
[323737221,1714225163655,-1000.0,0.00024925,60]
[323737222,1714225163678,-1000.0,0.00024925,30]
[323737223,1714225163702,-1000.0,0.00024925,30]
[323737224,1714225163726,-1000.0,0.00024925,30]
[323737225,1714225163752,-1000.0,0.00024925,30]
[323737226,1714225163778,-1062.22,0.00024925,30]
[323737227,1714225163802,-1527.77989062,0.00024925,30]
[323737228,1714225163827,-1354.55527337,0.00024925,30]
[323737229,1714225163853,-2551.15172337,0.00024925,120]
[323737230,1714225163878,-8346.13190888,0.00024925,120]
[323737231,1714225163904,-975.9282319,0.00024925,120]
[323737232,1714225163929,-210.76135683,0.00024925,60]
[323737233,1714225163954,-60000.0,0.00024925,120]
[323737234,1714225163983,-630681.23960351,0.00024925,120]
[323737235,1714225164007,-8927.31578621,0.00024925,30]
[323737236,1714225164041,-155.97019647,0.00024925,120]
[323737237,1714225164068,-821.19817921,0.00024925,60]
[323737238,1714225164093,-1000.0,0.00024925,120]
[323737239,1714225164115,-1684.80699652,0.00024925,120]
[323737240,1714225164146,-355.0662967,0.00024925,120]
[323737241,1714225164172,-2201.88986173,0.00024925,30]
[323737242,1714225164197,-3128.82916863,0.00024925,30]
[323737243,1714225164223,-2500.0,0.00024925,30]
[323737244,1714225164246,-2426.34360781,0.00024925,30]
[323737245,1714225164270,-3206.49612037,0.00024925,120]
[323737246,1714225164294,-2926.58002961,0.00024925,120]
[323737247,1714225164316,-2432.1131118,0.00024925,30]
[323737248,1714225164339,-2044.55096418,0.00024925,30]
[323737249,1714225164363,-4112.62988773,0.00024925,30]
[323737250,1714225164388,-4049.95166798,0.00024925,30]
[323737251,1714225164410,-14963.06755911,0.00024925,30]
[323737252,1714225164433,-3190.066,0.00024925,30]
[323737253,1714225164455,-1437.40370664,0.00024925,30]
[323737254,1714225164479,-254.0,0.00024925,30]
[323737255,1714225164502,-5514.60446316,0.00024925,45]
[323737256,1714225164532,-905.67041127,0.00024925,120]
[323737257,1714225164560,-421.338555,0.00024925,120]
[323737258,1714225164584,-2000.0,0.00024925,30]
[323737259,1714225164608,-2000.0,0.00024925,30]
[323737260,1714225164634,-1019.15769223,0.00024925,30]
[323737261,1714225165906,-2000.0,0.00024658,30]
[323737262,1714225165930,-2000.0,0.00024658,30]
[323737263,1714225165961,-2000.0,0.00024658,30]
[323737264,1714225165995,-2000.0,0.00024658,30]
[323737265,1714225166023,-1289.658,0.00024658,30]
[323737266,1714225166092,-343.58639574,0.00025,30]
[323737267,1714225166120,-667.05238255,0.00025,30]
[323737268,1714225166165,-1208.0,0.00026139,30]
[323737269,1714225166201,-213.45237086,0.0002739,30]
[323737270,1714225166245,-1200.0,0.00029,30]
[323737271,1714225166275,-155.12022295,0.00029,120]
[323737272,1714225166309,-246.8655778,0.0003,30]
[323737273,1714225166338,-1200.0,0.0003,31]
[323737274,1714225166372,-198.43555807,0.0003,120]
[323737275,1714225166403,-1384.00462452,0.0003,60]
[323737276,1714225166431,-16871.79,0.0003,30]
[323737277,1714225166462,-647.16556571,0.0003,120]
[323737278,1714225166495,-8000.0,0.0003,120]
[323737279,1714225166527,-8000.0,0.0003,120]
[323737280,1714225166559,-8000.0,0.000301,120]
[323737281,1714225166585,-1444.19,0.000301,120]
[323737282,1714225166616,-8000.0,0.000302,120]
[323737283,1714225166643,-8000.0,0.000302,120]
[323737284,1714225166671,-8000.0,0.000303,120]
[323737285,1714225166699,-8000.0,0.000303,120]
[323737286,1714225166726,-8000.0,0.000304,120]
[323737287,1714225166754,-8000.0,0.000305,120]
[323737288,1714225166782,-8000.0,0.000306,120]
[323737289,1714225166810,-8000.0,0.000306,120]
[323737290,1714225166837,-8000.0,0.000307,120]
[323737291,1714225166866,-8000.0,0.000307,120]
[323737292,1714225166895,-8000.0,0.000308,120]
[323737293,1714225166924,-8000.0,0.000308,120]
[323737294,1714225166952,-250.0,0.000308,30]
[323737295,1714225166982,-8000.0,0.000309,120]
[323737296,1714225167012,-8000.0,0.000309,120]
[323737297,1714225167041,-8000.0,0.00031,120]
[323737298,1714225167071,-8000.0,0.00031,120]
[323737299,1714225167101,-8000.0,0.000311,120]
[323737300,1714225167134,-8000.0,0.000312,120]
[323737301,1714225167168,-8000.0,0.000313,120]
[323737302,1714225167200,-8000.0,0.000314,120]
[323737303,1714225167233,-8000.0,0.000315,120]
[323737304,1714225167262,-8000.0,0.000316,120]
[323737305,1714225167292,-2416.0,0.00031661,120]
[323737306,1714225167320,-8000.0,0.000317,120]
[323737307,1714225167350,-779.262112,0.00032,32]
[323737308,1714225167377,-961.40030005,0.00032,120]
[323737309,1714225167412,-500.0,0.00032876,31]
[323737310,1714225167444,-157.39732646,0.00033,120]
[323737311,1714225167474,-1350.0,0.00033,33]
[323737312,1714225167504,-7885.72409855,0.00033,60]
[323737313,1714225167535,-2406.0,0.00033807,120]
[323737314,1714225167563,-1500.0,0.00034,120]
[323737315,1714225167592,-653.67092609,0.00034,30]
[323737316,1714225167619,-1250.0,0.00034,34]
[323737317,1714225167646,-226.97833239,0.00034,30]
[323737318,1714225167672,-28043.0479416,0.00034,120]
[323737319,1714225167699,-9953.73599327,0.000342,30]
[323737320,1714225167725,-2406.0,0.00034307,120]
[323737321,1714225167754,-3100.0,0.000345,120]
[323737322,1714225167783,-2406.0,0.00034807,120]
[323737323,1714225167809,-2001.01968782,0.000349,30]
[323737324,1714225167838,-853.82251037,0.00035,30]
[323737325,1714225167866,-936.99396717,0.00035,120]
[323737326,1714225167894,-2904.0,0.00035,60]
[323737327,1714225167922,-1445.83274962,0.00035,30]
[323737328,1714225167944,-1150.0,0.00035,35]
[323737329,1714225167966,-1000.0,0.00035,120]
[323737330,1714225167988,-58648.7703456,0.00035,30]
[323737331,1714225168012,-492.35368866,0.00035,120]
[323737332,1714225168035,-3038.38812735,0.00035,120]
[323737333,1714225168361,-599.62,0.00035,30]
[323737334,1714225168394,-5000.0,0.00035,30]
[323737335,1714225168417,-1001.0,0.00035,120]
[323737336,1714225168441,-5000.0,0.00035038,30]
[323737337,1714225168464,-535.9,0.0003507,30]
[323737338,1714225168487,-5000.0,0.00035075,30]
[323737339,1714225168511,-5000.0,0.00035113,30]
[323737340,1714225168533,-5000.0,0.0003515,30]
[323737341,1714225168556,-5000.0,0.00035188,30]
[323737342,1714225168579,-5000.0,0.00035225,30]
[323737343,1714225168602,-5000.0,0.00035263,30]
[323737344,1714225168625,-2406.0,0.00035307,120]
[323737345,1714225168648,-535.9,0.0003541,60]
[323737346,1714225168671,-535.9,0.0003549,120]
[323737347,1714225168692,-1254.61366966,0.000356,30]
[323737348,1714225168716,-1000.0,0.00035616,30]
[323737349,1714225168739,-2408.81189961,0.00035807,120]
[323737350,1714225168763,-12851.08,0.0003589,120]
[323737351,1714225168785,-80000.0,0.00036,30]
[323737352,1714225168807,-2020.58,0.00036,32]
[323737353,1714225168832,-100000.0,0.00036,30]
[323737354,1714225168855,-1500.0,0.00036,120]
[323737355,1714225168878,-787.73440911,0.00036,60]
[323737356,1714225168901,-515.02865149,0.000361,120]
[323737357,1714225168924,-9953.73599327,0.000362,30]
[323737358,1714225168948,-260308.37657166,0.000369,30]
[323737359,1714225174488,-980.84230777,0.00024925,30]
[323737360,1714225174511,-2000.0,0.00024925,30]
[323737361,1714225174534,-2000.0,0.00024925,30]
[323737362,1714225174557,-2000.0,0.00024925,30]
[323737363,1714225174580,-2000.0,0.00024925,30]
[323737364,1714225174603,-2000.0,0.00024925,30]
[323737365,1714225174625,-2000.0,0.00024925,30]
[323737366,1714225174647,-2000.0,0.00024925,30]
[323737367,1714225174669,-2000.0,0.00024925,30]
[323737368,1714225174691,-2000.0,0.00024925,30]
[323737369,1714225174713,-2000.0,0.00024925,30]
[323737370,1714225174735,-2000.0,0.00024925,30]
[323737371,1714225174758,-2000.0,0.00024925,30]
[323737372,1714225174781,-2000.0,0.00024925,30]
[323737373,1714225174805,-2000.0,0.00024925,30]
[323737374,1714225174827,-2000.0,0.00024925,30]
[323737375,1714225174850,-2000.0,0.00024925,30]
[323737376,1714225174872,-2000.0,0.00024925,30]
[323737377,1714225174894,-2000.0,0.00024925,30]
[323737378,1714225174916,-2000.0,0.00024925,30]
[323737379,1714225174938,-2000.0,0.00024925,30]
[323737380,1714225174959,-2000.0,0.00024925,30]
[323737381,1714225174981,-2000.0,0.00024925,30]
[323737382,1714225175003,-2000.0,0.00024925,30]
[323737383,1714225175218,-2000.0,0.00024925,30]